fUST/lending_fUST_20240203
["ID","MTS","AMOUNT","RATE_DAILY","PERIOD"]
[313180501,1706889885155,-322.06127261,0.00021136,2]
[313180502,1706889885176,-1583.93872739,0.00021137,2]
[313180509,1706889934541,318.54,0.00021126,3]
[313180627,1706890237960,-155.02790502,0.00021003,2]
[313180628,1706890237971,-181.33542459,0.00021003,2]
[313180629,1706890237981,-1295.94446577,0.00021003,2]
[313180630,1706890237990,-1244.61449288,0.00021003,2]
[313180631,1706890237999,-212.4169632,0.00021004,2]
[313180632,1706890238009,-199.56931104,0.00021005,2]
[313180633,1706890238019,-155.23228967,0.00021005,2]
[313180634,1706890238029,-295.45050683,0.00021005,2]
[313180635,1706890238038,-1432.81517773,0.00021005,2]
[313180636,1706890238048,-155.02325349,0.00021005,2]
[313180637,1706890238057,-4390.29110281,0.00021005,2]
[313180638,1706890238070,-16519.67593298,0.00021005,2]
[313180640,1706890238079,-322.06127261,0.00021006,2]
[313180641,1706890238088,-3752.26075738,0.00021006,2]
[313180643,1706890238098,-453.75505119,0.00021007,2]
[313180645,1706890238107,-2042.80747063,0.00021007,2]
[313180647,1706890238116,-620.54726188,0.00021007,2]
[313180649,1706890238125,-500.0,0.00021007,2]
[313180651,1706890238134,-7974.33759176,0.00021007,2]
[313180653,1706890238144,-160.50111058,0.00021013,2]
[313180655,1706890238155,-37028.48161745,0.00021103,2]
[313180657,1706890238166,-155.02480397,0.00021124,2]
[313180659,1706890238175,-155.02480397,0.00021124,2]
[313180662,1706890238185,-500.0,0.00021125,2]
[313180663,1706890238194,-500.0,0.00021125,2]
[313180665,1706890238203,-500.0,0.00021125,2]
[313180667,1706890238213,-500.0,0.00021125,2]
[313180669,1706890238223,-500.0,0.00021125,2]
[313180671,1706890238233,-500.0,0.00021125,2]
[313180674,1706890238242,-500.0,0.00021125,2]
[313180675,1706890238252,-500.0,0.00021125,2]
[313180677,1706890238261,-500.0,0.00021125,2]
[313180679,1706890238270,-500.0,0.00021125,2]
[313180681,1706890238279,-500.0,0.00021125,2]
[313180683,1706890238288,-500.0,0.00021125,2]
[313180685,1706890238297,-500.0,0.00021125,2]
[313180687,1706890238306,-507.5523926,0.00021125,2]
[313180689,1706890238317,-500.0,0.00021125,2]
[313180691,1706890238327,-500.0,0.00021125,2]
[313180693,1706890238336,-500.0,0.00021125,2]
[313180695,1706890238345,-471.79729339,0.00021125,2]
[313180697,1706890238354,-500.0,0.00021125,2]
[313180699,1706890238363,-275.73000822,0.00021125,2]
[313180701,1706890238373,-500.0,0.00021125,2]
[313180703,1706890238383,-500.0,0.00021125,2]
[313180705,1706890238393,-500.0,0.00021125,2]
[313180707,1706890238401,-500.0,0.00021125,2]
[313180709,1706890238411,-500.0,0.00021125,2]
[313180711,1706890238420,-500.0,0.00021125,2]
[313180713,1706890238429,-500.0,0.00021125,2]
[313180715,1706890238438,-500.0,0.00021125,2]
[313180717,1706890238447,-500.0,0.00021125,2]
[313180719,1706890238456,-500.0,0.00021125,2]
[313180720,1706890238465,-500.0,0.00021125,2]
[313180722,1706890238475,-500.0,0.00021125,2]
[313180724,1706890238484,-500.0,0.00021125,2]
[313180725,1706890238493,-500.0,0.00021125,2]
[313180726,1706890238503,-500.0,0.00021125,2]
[313180727,1706890238512,-500.0,0.00021125,2]
[313180728,1706890238522,-500.0,0.00021125,2]
[313180730,1706890238531,-500.0,0.00021125,2]
[313180731,1706890238540,-500.0,0.00021125,2]
[313180732,1706890238550,-500.0,0.00021125,2]
[313180733,1706890238559,-500.0,0.00021125,2]
[313180734,1706890238569,-500.0,0.00021125,2]
[313180735,1706890238581,-500.0,0.00021125,2]
[313180736,1706890238590,-611.45488391,0.00021125,2]
[313180737,1706890238599,-500.0,0.00021125,2]
[313180738,1706890238609,-500.0,0.00021125,2]
[313180739,1706890238618,-500.0,0.00021125,2]
[313180740,1706890238627,-500.0,0.00021125,2]
[313180741,1706890238636,-500.0,0.00021125,2]
[313180742,1706890238645,-500.0,0.00021125,2]
[313180743,1706890238654,-500.0,0.00021125,2]
[313180744,1706890238663,-500.0,0.00021125,2]
[313180745,1706890238672,-500.0,0.00021125,2]
[313180746,1706890238681,-500.0,0.00021125,2]
[313180747,1706890238691,-500.0,0.00021125,2]
[313180748,1706890238700,-500.0,0.00021125,2]
[313180749,1706890238709,-500.0,0.00021125,2]
[313180750,1706890238718,-500.0,0.00021125,2]
[313180751,1706890238727,-268.37038289,0.00021125,2]
[313180752,1706890238736,-500.0,0.00021125,2]
[313180753,1706890238745,-500.0,0.00021125,2]
[313180754,1706890238754,-500.0,0.00021125,2]
[313180755,1706890238764,-500.0,0.00021125,2]
[313180756,1706890238774,-500.0,0.00021125,2]
[313180757,1706890238783,-500.0,0.00021125,2]
[313180758,1706890238793,-500.0,0.00021125,2]
[313180759,1706890238802,-500.0,0.00021125,2]
[313180760,1706890238811,-500.0,0.00021125,2]
[313180761,1706890238820,-500.0,0.00021125,2]
[313180762,1706890238829,-500.0,0.00021125,2]
[313180763,1706890238839,-500.0,0.00021125,2]
[313180764,1706890238849,-500.0,0.00021125,2]
[313180765,1706890238858,-500.0,0.00021125,2]
[313180766,1706890238867,-500.0,0.00021125,2]
[313180767,1706890238876,-500.0,0.00021125,2]
[313180768,1706890238885,-500.0,0.00021125,2]
[313180769,1706890238895,-500.0,0.00021125,2]
[313180770,1706890238904,-500.0,0.00021125,2]
[313180771,1706890238913,-500.0,0.00021125,2]
[313180772,1706890238923,-500.0,0.00021125,2]
[313180773,1706890238932,-500.0,0.00021125,2]
[313180774,1706890238942,-500.0,0.00021125,2]
[313180775,1706890238952,-500.0,0.00021125,2]
[313180776,1706890238962,-500.0,0.00021125,2]
[313180777,1706890238971,-155.02325349,0.00021125,2]
[313180778,1706890238981,-155.02325349,0.00021126,2]
[313180779,1706890238990,-155.02325349,0.00021126,2]
[313180780,1706890238999,-155.02325349,0.00021126,2]
[313180781,1706890239009,-535.60419036,0.00021126,2]
[313180782,1706890239020,-5202.3894055,0.00021126,2]
[313180783,1706890239035,-231842.81747385,0.00021126,2]
[313180784,1706890239044,-23316.06127261,0.00021137,2]
[313180785,1706890239053,-167.11616127,0.00021327,2]
[313180786,1706890239064,-180.3161877,0.00021427,2]
[313180787,1706890239073,-7991.47294273,0.00022551,2]
[313180788,1706890239083,-18690.2228921,0.00022656,2]
[313180789,1706890239093,-1463.3178878,0.00022785,2]
[313180790,1706890239102,-1220.48280122,0.00022791,2]
[313180791,1706890239111,-5847.3829975,0.00022885,2]
[313180792,1706890239121,-310.0,0.00022885,2]
[313180793,1706890239130,-1486.66147755,0.00022885,2]
[313180794,1706890239140,-243.60640262,0.00022885,2]
[313180795,1706890239152,-1581.70409938,0.00022885,2]
[313180796,1706890239161,-639.74017804,0.00022885,2]
[313180797,1706890239171,-1268.83572051,0.00022885,2]
[313180798,1706890239180,-293.90054191,0.00022885,2]
[313180799,1706890239190,-330.0505798,0.00022885,2]
[313180800,1706890239199,-310.0,0.00022885,2]
[313180801,1706890239209,-523.0723444,0.00022885,2]
[313180802,1706890239218,-272.59010519,0.00022885,2]
[313180803,1706890239228,-787.13039263,0.00022885,2]
[313180804,1706890239238,-556.52643287,0.00022885,2]
[313180805,1706890239248,-449.22241999,0.00022885,2]
[313180806,1706890239257,-155.20128881,0.00022885,2]
[313180807,1706890239266,-302.9869048,0.00022885,2]
[313180808,1706890239275,-904.96914882,0.00022885,2]
[313180809,1706890239284,-310.02790329,0.00022885,2]
[313180810,1706890239294,-167.27020705,0.00022885,2]
[313180811,1706890239303,-184.67094576,0.00022885,2]
[313180813,1706890239394,-241.69758449,0.00022885,2]
[313180814,1706890239403,-1699.29478651,0.00022885,2]
[313180827,1706890241230,-1743.90819804,0.00021002,2]
[313180828,1706890241240,-405.13536241,0.00022885,2]
[313180829,1706890241250,-20935.35188878,0.00022886,2]
[313180830,1706890241259,-200.0,0.00023241,7]
[313180831,1706890241268,-14424.70618624,0.00023536,2]
[313180832,1706890241277,-3617.93854512,0.00023536,2]
[313180833,1706890241286,-562.60505917,0.00023895,2]
[313180834,1706890241296,-471.52922984,0.000239,2]
[313180835,1706890241305,-828.87140763,0.00024242,2]
[313180836,1706890241318,-634.44648008,0.00024242,2]
[313180837,1706890241328,-765.40311766,0.00025,2]
[313180838,1706890241337,-610.81141947,0.00025147,2]
[313180839,1706890241346,-280.0,0.00025565,7]
[313180840,1706890241355,-1463.31788771,0.00025699,2]
[313180841,1706890241364,-280.25684936,0.00026,2]
[313180842,1706890241373,-588.66135509,0.00027394,2]
[313180843,1706890241383,-686.63337488,0.00027394,2]
[313180844,1706890241392,-297.15802593,0.00027394,2]
[313180845,1706890241402,-599.55843528,0.00027395,2]
[313180846,1706890241411,-544.12604261,0.00027395,2]
[313180847,1706890241420,-155.5725508,0.00027396,2]
[313180848,1706890241429,-155.66924406,0.00027396,2]
[313180849,1706890241439,-503.33303702,0.00027397,2]
[313180850,1706890241448,-500.0,0.00027397,2]
[313180851,1706890241457,-500.0,0.00027397,2]
[313180852,1706890241466,-500.0,0.00027397,2]
[313180853,1706890241475,-500.0,0.00027397,2]
[313180854,1706890241485,-500.0,0.00027397,2]
[313180855,1706890241494,-500.0,0.00027397,2]
[313180856,1706890241503,-500.0,0.00027397,2]
[313180857,1706890241511,-517.55,0.00027397,2]
[313180858,1706890241521,-500.0,0.00027397,2]
[313180859,1706890241530,-500.0,0.00027397,2]
[313180860,1706890241539,-500.0,0.00027397,2]
[313180861,1706890241548,-261.5654487,0.00027397,2]
[313180862,1706890241557,-500.0,0.00027397,2]
[313180863,1706890241569,-500.0,0.00027397,2]
[313180864,1706890241578,-500.0,0.00027397,2]
[313180865,1706890241588,-500.0,0.00027397,7]
[313180866,1706890241597,-500.0,0.00027397,2]
[313180867,1706890241607,-500.0,0.00027397,2]
[313180868,1706890241616,-500.0,0.00027397,2]
[313180869,1706890241627,-500.0,0.00027397,2]
[313180870,1706890241636,-500.0,0.00027397,2]
[313180871,1706890241647,-500.0,0.00027397,2]
[313180872,1706890241656,-500.0,0.00027397,2]
[313180873,1706890241666,-500.0,0.00027397,2]
[313180874,1706890241677,-500.0,0.00027397,2]
[313180875,1706890241687,-500.0,0.00027397,2]
[313180876,1706890241696,-500.0,0.00027397,2]
[313180877,1706890241705,-180.27461566,0.00027397,2]
[313180878,1706890241714,-508.35909412,0.00027397,2]
[313180879,1706890241724,-500.0,0.00027397,2]
[313180880,1706890241735,-500.0,0.00027397,2]
[313180881,1706890241744,-500.0,0.00027397,2]
[313180882,1706890241754,-549.66,0.00027397,2]
[313180883,1706890241763,-500.0,0.00027397,2]
[313180884,1706890241774,-500.0,0.00027397,2]
[313180885,1706890241783,-500.0,0.00027397,2]
[313180886,1706890241792,-500.0,0.00027397,2]
[313180887,1706890241801,-500.0,0.00027397,2]
[313180888,1706890241810,-500.0,0.00027397,2]
[313180889,1706890241823,-500.0,0.00027397,2]
[313180890,1706890241834,-500.0,0.00027397,2]
[313180891,1706890241843,-500.0,0.00027397,2]
[313180892,1706890241852,-500.0,0.00027397,2]
[313180893,1706890241862,-500.0,0.00027397,2]
[313180894,1706890241871,-500.0,0.00027397,2]
[313180895,1706890241880,-501.48964606,0.00027397,2]
[313180896,1706890241889,-500.0,0.00027397,2]
[313180897,1706890241898,-500.0,0.00027397,2]
[313180898,1706890241908,-500.0,0.00027397,2]
[313180899,1706890241917,-626.6242037,0.00027397,2]
[313180900,1706890241927,-500.0,0.00027397,2]
[313180901,1706890241936,-500.0,0.00027397,2]
[313180902,1706890241945,-500.0,0.00027397,2]
[313180903,1706890241954,-500.0,0.00027397,2]
[313180904,1706890241963,-500.0,0.00027397,2]
[313180905,1706890241972,-500.0,0.00027397,2]
[313180906,1706890241981,-500.0,0.00027397,2]
[313180907,1706890241990,-500.0,0.00027397,2]
[313180908,1706890241999,-500.0,0.00027397,2]
[313180909,1706890242009,-500.0,0.00027397,2]
[313180910,1706890242018,-500.0,0.00027397,2]
[313180911,1706890242027,-500.0,0.00027397,2]
[313180912,1706890242036,-500.0,0.00027397,2]
[313180913,1706890242045,-155.0,0.00027397,2]
[313180914,1706890242054,-500.0,0.00027397,2]
[313180915,1706890242065,-500.0,0.00027397,2]
[313180916,1706890242074,-190.90635508,0.00027397,2]
[313180917,1706890242084,-500.0,0.00027397,2]
[313180918,1706890242094,-500.0,0.00027397,2]
[313180919,1706890242103,-572.27,0.00027397,2]
[313180920,1706890242113,-500.0,0.00027397,2]
[313180921,1706890242122,-500.0,0.00027397,2]
[313180922,1706890242132,-500.0,0.00027397,2]
[313180923,1706890242143,-500.0,0.00027397,2]
[313180924,1706890242154,-500.0,0.00027397,2]
[313180925,1706890242164,-500.0,0.00027397,2]
[313180926,1706890242174,-1000.0,0.00027397,2]
[313180927,1706890242183,-500.0,0.00027397,2]
[313180928,1706890242193,-500.0,0.00027397,2]
[313180929,1706890242203,-500.0,0.00027397,2]
[313180930,1706890242213,-500.0,0.00027397,2]
[313180931,1706890242223,-512.14,0.00027397,2]
[313180932,1706890242233,-500.0,0.00027397,2]
[313180933,1706890242244,-500.0,0.00027397,2]
[313180934,1706890242254,-500.0,0.00027397,2]
[313180935,1706890242263,-395.98984785,0.00027397,2]
[313180963,1706890244542,-1463.31788771,0.00027157,2]
[313180964,1706890244551,-104.01015215,0.00027397,2]
[313180965,1706890244560,-523.51219446,0.00027397,2]
[313180966,1706890244570,-507.14192203,0.00027397,2]
[313180967,1706890244580,-500.0,0.00027397,2]
[313180968,1706890244589,-513.17833181,0.00027397,2]
[313180969,1706890244599,-500.0,0.00027397,2]
[313180970,1706890244609,-750.99,0.00027397,2]
[313180971,1706890244618,-500.0,0.00027397,2]
[313180972,1706890244627,-500.0,0.00027397,2]
[313180973,1706890244636,-500.0,0.00027397,2]
[313180974,1706890244645,-500.0,0.00027397,2]
[313180975,1706890244654,-640.67,0.00027397,2]
[313180976,1706890244663,-1408.21,0.00027397,2]
[313180977,1706890244672,-1497.44,0.00027397,2]
[313180978,1706890244681,-500.0,0.00027397,2]
[313180979,1706890244691,-500.0,0.00027397,2]
[313180980,1706890244700,-500.0,0.00027397,2]
[313180981,1706890244710,-3172.19,0.00027397,2]
[313180982,1706890244719,-500.0,0.00027397,2]
[313180983,1706890244729,-500.0,0.00027397,2]
[313180984,1706890244738,-631.05,0.00027397,2]
[313180985,1706890244748,-500.0,0.00027397,2]
[313180986,1706890244757,-500.0,0.00027397,2]
[313180987,1706890244767,-5836.77,0.00027397,2]
[313180988,1706890244777,-500.0,0.00027397,2]
[313180989,1706890244786,-500.0,0.00027397,2]
[313180990,1706890244795,-511.63,0.00027397,2]
[313180991,1706890244808,-500.0,0.00027397,2]
[313180992,1706890244819,-589.47,0.00027397,2]
[313180993,1706890244828,-514.2721985,0.00027397,2]
[313180994,1706890244837,-500.0,0.00027397,2]
[313180995,1706890244846,-1061.58,0.00027397,2]
[313180996,1706890244856,-3894.17,0.00027397,2]
[313180997,1706890244865,-589.16,0.00027397,2]
[313180998,1706890244875,-500.0,0.00027397,2]
[313180999,1706890244884,-500.0,0.00027397,2]
[313181000,1706890244894,-500.0,0.00027397,2]
[313181001,1706890244904,-500.0,0.00027397,2]
[313181002,1706890244913,-500.0,0.00027397,2]
[313181003,1706890244923,-500.0,0.00027397,2]
[313181004,1706890244932,-500.0,0.00027397,2]
[313181005,1706890244941,-500.0,0.00027397,2]
[313181006,1706890244951,-500.0,0.00027397,2]
[313181007,1706890244960,-500.0,0.00027397,2]
[313181008,1706890244969,-500.0,0.00027397,2]
[313181009,1706890244979,-3438.99,0.00027397,2]
[313181010,1706890244989,-500.0,0.00027397,2]
[313181011,1706890244998,-500.0,0.00027397,2]
[313181012,1706890245008,-500.0,0.00027397,2]
[313181013,1706890245017,-500.0,0.00027397,2]
[313181014,1706890245026,-500.0,0.00027397,2]
[313181015,1706890245035,-500.0,0.00027397,2]
[313181016,1706890245044,-500.0,0.00027397,2]
[313181017,1706890245053,-8031.65,0.00027397,2]
[313181018,1706890245062,-500.0,0.00027397,2]
[313181019,1706890245073,-1200.07,0.00027397,2]
[313181020,1706890245082,-829.83,0.00027397,2]
[313181021,1706890245091,-500.0,0.00027397,2]
[313181022,1706890245100,-500.0,0.00027397,2]
[313181023,1706890245109,-1399.26,0.00027397,2]
[313181024,1706890245118,-500.0,0.00027397,2]
[313181025,1706890245127,-1597.12,0.00027397,2]
[313181026,1706890245136,-1093.28,0.00027397,2]
[313181027,1706890245147,-500.0,0.00027397,2]
[313181028,1706890245158,-500.0,0.00027397,2]
[313181029,1706890245170,-512.21503868,0.00027397,2]
[313181030,1706890245179,-500.0,0.00027397,2]
[313181031,1706890245189,-500.0,0.00027397,2]
[313181032,1706890245198,-500.0,0.00027397,2]
[313181033,1706890245209,-500.0,0.0002767,2]
[313181034,1706890245218,-323.97724538,0.0002767,2]
[313181035,1706890245229,-176.8932455,0.0002767,2]
[313181036,1706890245240,-500.0,0.0002767,2]
[313181037,1706890245251,-500.0,0.0002767,2]
[313181038,1706890245261,-275.55582251,0.0002767,2]
[313181039,1706890245270,-419.69780003,0.0002767,2]
[313181040,1706890245281,-500.0,0.0002767,2]
[313181041,1706890245291,-500.0,0.0002767,2]
[313181042,1706890245300,-500.0,0.0002767,2]
[313181043,1706890245311,-500.0,0.0002767,2]
[313181044,1706890245321,-500.0,0.0002767,2]
[313181045,1706890245330,-500.0,0.00027671,2]
[313181047,1706890245340,-500.0,0.00027671,2]
[313181048,1706890245349,-500.0,0.00027671,2]
[313181062,1706890245440,-500.0,0.00027671,2]
[313181064,1706890245450,-500.0,0.00027671,2]
[313181065,1706890245460,-500.0,0.00027671,2]
[313181066,1706890245470,-500.0,0.00027671,2]
[313181067,1706890245481,-500.0,0.00027671,2]
[313181068,1706890245491,-500.0,0.00027671,2]
[313181069,1706890245501,-500.0,0.00027671,2]
[313181070,1706890245510,-500.0,0.00027671,2]
[313181071,1706890245519,-549.66,0.00027671,2]
[313181072,1706890245528,-500.0,0.00027671,2]
[313181073,1706890245537,-500.0,0.00027671,2]
[313181074,1706890245547,-500.0,0.00027671,2]
[313181077,1706890245556,-500.0,0.00027671,2]
[313181080,1706890245567,-500.0,0.00027671,2]
[313181082,1706890245577,-500.0,0.00027671,2]
[313181083,1706890245587,-523.488465,0.00027671,2]
[313181084,1706890245596,-500.0,0.00027671,2]
[313181085,1706890245605,-408.89177542,0.00027671,2]
[313181086,1706890245615,-500.0,0.00027671,2]
[313181087,1706890245623,-500.0,0.00027671,2]
[313181088,1706890245633,-500.0,0.00027671,2]
[313181089,1706890245642,-379.3855834,0.00027671,2]
[313181090,1706890245652,-572.27,0.00027671,2]
[313181091,1706890245662,-500.0,0.00027671,2]
[313181093,1706890245671,-500.0,0.00027671,2]
[313181095,1706890245680,-1000.0,0.00027671,2]
[313181097,1706890245689,-500.0,0.00027671,2]
[313181098,1706890245698,-500.0,0.00027671,2]
[313181100,1706890245707,-500.0,0.00027671,2]
[313181102,1706890245715,-511.63986139,0.00027671,2]
[313181104,1706890245724,-500.0,0.00027671,2]
[313181106,1706890245733,-230.66671686,0.00027671,2]
[313181108,1706890245742,-500.0,0.00027671,2]
[313181110,1706890245751,-750.99,0.00027671,2]
[313181111,1706890245761,-500.0,0.00027671,2]
[313181112,1706890245771,-500.0,0.00027671,2]
[313181113,1706890245781,-640.67,0.00027671,2]
[313181114,1706890245793,-1408.21,0.00027671,2]
[313181115,1706890245802,-1497.44,0.00027671,2]
[313181116,1706890245811,-500.0,0.00027671,2]
[313181117,1706890245820,-3172.19,0.00027671,2]
[313181118,1706890245830,-500.0,0.00027671,2]
[313181119,1706890245839,-631.05,0.00027671,2]
[313181120,1706890245848,-500.0,0.00027671,2]
[313181121,1706890245858,-500.0,0.00027671,2]
[313181122,1706890245867,-5836.77,0.00027671,2]
[313181123,1706890245876,-500.0,0.00027671,2]
[313181124,1706890245885,-511.63,0.00027671,2]
[313181125,1706890245894,-500.0,0.00027671,2]
[313181126,1706890245904,-500.0,0.00027671,2]
[313181127,1706890245913,-1061.58,0.00027671,2]
[313181128,1706890245922,-3894.17,0.00027671,2]
[313181129,1706890245931,-500.0,0.00027671,2]
[313181130,1706890245941,-500.0,0.00027671,2]
[313181131,1706890245950,-500.0,0.00027671,2]
[313181132,1706890245960,-500.0,0.00027671,2]
[313181133,1706890245969,-579.09,0.00027671,2]
[313181134,1706890245979,-500.0,0.00027671,2]
[313181135,1706890245989,-500.0,0.00027671,2]
[313181136,1706890245998,-3438.99,0.00027671,2]
[313181137,1706890246008,-500.0,0.00027671,2]
[313181138,1706890246017,-8031.65,0.00027671,2]
[313181139,1706890246026,-1200.07,0.00027671,2]
[313181140,1706890246035,-829.83,0.00027671,2]
[313181141,1706890246044,-500.0,0.00027671,2]
[313181142,1706890246054,-500.0,0.00027671,2]
[313181143,1706890246063,-1399.26,0.00027671,2]
[313181144,1706890246073,-500.0,0.00027671,2]
[313181145,1706890246083,-1597.12,0.00027671,2]
[313181146,1706890246092,-1093.28,0.00027671,2]
[313181147,1706890246101,-500.0,0.00027671,2]
[313181148,1706890246110,-500.0,0.00027671,2]
[313181149,1706890246119,-302.15847408,0.00027671,2]
[313181150,1706890246128,-500.0,0.00027671,2]
[313181151,1706890246138,-3706.9105629,0.00027941,2]
[313181152,1706890246151,-1933.47332083,0.00027942,2]
[313181153,1706890246160,-2797.75742491,0.00027943,2]
[313181154,1706890246169,-500.0,0.00027944,2]
[313181155,1706890246178,-356.23,0.00027945,2]
[313181156,1706890246187,-327.73,0.00027945,2]
[313181157,1706890246198,-500.0,0.00027945,2]
[313181158,1706890246207,-500.0,0.00027945,2]
[313181159,1706890246216,-180.09,0.00027945,2]
[313181160,1706890246230,-549.66,0.00027945,2]
[313181161,1706890246241,-500.0,0.00027945,2]
[313181162,1706890246250,-500.0,0.00027945,2]
[313181163,1706890246259,-572.27,0.00027945,2]
[313181164,1706890246269,-500.0,0.00027945,2]
[313181165,1706890246278,-298.05,0.00027945,2]
[313181166,1706890246287,-1000.0,0.00027945,2]
[313181167,1706890246296,-500.0,0.00027945,2]
[313181168,1706890246305,-502.02,0.00027945,2]
[313181169,1706890246313,-384.92,0.00027945,2]
[313181170,1706890246324,-750.99,0.00027945,2]
[313181171,1706890246333,-259.31,0.00027945,2]
[313181172,1706890246342,-640.67,0.00027945,2]
[313181173,1706890246351,-1408.21,0.00027945,2]
[313181174,1706890246360,-1497.44,0.00027945,2]
[313181175,1706890246370,-500.0,0.00027945,2]
[313181176,1706890246385,-3172.19,0.00027945,2]
[313181177,1706890246398,-631.05,0.00027945,2]
[313181178,1706890246411,-500.0,0.00027945,2]
[313181179,1706890246424,-5836.77,0.00027945,2]
[313181180,1706890246436,-511.63,0.00027945,2]
[313181181,1706890246448,-1061.58,0.00027945,2]
[313181182,1706890246462,-3894.17,0.00027945,2]
[313181183,1706890246473,-500.0,0.00027945,2]
[313181184,1706890246484,-500.0,0.00027945,2]
[313181185,1706890246496,-500.0,0.00027945,2]
[313181186,1706890246509,-3438.99,0.00027945,2]
[313181187,1706890246521,-500.0,0.00027945,2]
[313181188,1706890246534,-8031.65,0.00027945,2]
[313181189,1706890246545,-1200.07,0.00027945,2]
[313181190,1706890246558,-829.83,0.00027945,2]
[313181191,1706890246571,-500.0,0.00027945,2]
[313181192,1706890246582,-1399.26,0.00027945,2]
[313181193,1706890246592,-500.0,0.00027945,2]
[313181194,1706890246603,-1597.12,0.00027945,2]
[313181195,1706890246615,-1093.28,0.00027945,2]
[313181196,1706890246626,-500.0,0.00027945,2]
[313181197,1706890246638,-500.0,0.00027945,2]
[313181198,1706890246648,-3689.79102512,0.00028,2]
[313181199,1706890246660,-881.38990186,0.00028,3]
[313181200,1706890246672,-3000.0,0.00028,2]
[313181201,1706890246682,-201.261967,0.00028,2]
[313181202,1706890246692,-2651.66215339,0.00028,2]
[313181203,1706890246701,-200.0,0.000281,4]
[313181204,1706890246715,-157.89422691,0.00028202,2]
[313181205,1706890246726,-500.0,0.00028218,2]
[313181206,1706890246737,-500.0,0.00028219,2]
[313181207,1706890246749,-500.0,0.00028219,2]
[313181208,1706890246760,-549.66,0.00028219,2]
[313181209,1706890246772,-333.13,0.00028219,2]
[313181210,1706890246784,-572.27,0.00028219,2]
[313181211,1706890246796,-500.0,0.00028219,2]
[313181212,1706890246807,-500.0,0.00028219,2]
[313181213,1706890246819,-750.99,0.00028219,2]
[313181214,1706890246831,-640.67,0.00028219,2]
[313181215,1706890246844,-1408.21,0.00028219,2]
[313181216,1706890246857,-1497.44,0.00028219,2]
[313181217,1706890246869,-500.0,0.00028219,2]
[313181218,1706890246880,-3172.19,0.00028219,2]
[313181219,1706890246890,-631.05,0.00028219,2]
[313181220,1706890246902,-500.0,0.00028219,2]
[313181221,1706890246912,-5836.77,0.00028219,2]
[313181222,1706890246923,-511.63,0.00028219,2]
[313181223,1706890246935,-1061.58,0.00028219,2]
[313181224,1706890246947,-3894.17,0.00028219,2]
[313181225,1706890246958,-500.0,0.00028219,2]
[313181226,1706890246970,-500.0,0.00028219,2]
[313181227,1706890246980,-500.0,0.00028219,2]
[313181228,1706890246993,-3438.99,0.00028219,2]
[313181229,1706890247004,-500.0,0.00028219,2]
[313181230,1706890247016,-8031.65,0.00028219,2]
[313181231,1706890247027,-1200.07,0.00028219,2]
[313181232,1706890247038,-829.83,0.00028219,2]
[313181233,1706890247049,-500.0,0.00028219,2]
[313181234,1706890247060,-1399.26,0.00028219,2]
[313181235,1706890247072,-343.61,0.00028219,2]